[Event "Late-Titled-Tuesday-Blitz-March-19-2024"]
[Site "Chess.com"]
[Date "2024.03.19"]
[Round "1"]
[White "Eduard_Limonov"]
[Black "dolynachess"]
[Result "1/2-1/2"]
[WhiteElo "2860"]
[BlackElo "2518"]
[TimeControl "180+1"]
[EndTime "14:08:31 PDT"]
[Termination "Game drawn - insufficient material"]

1. Nf3 {[%clk 0:02:55.3]} 1... Nf6 {[%clk 0:02:57.9]} 2. c4 {[%clk 0:02:55.7]}
2... g6 {[%clk 0:02:58.1]} 3. g3 {[%clk 0:02:56.2]} 3... c5 {[%clk 0:02:58.6]}
4. b3 {[%clk 0:02:56.4]} 4... Bg7 {[%clk 0:02:59]} 5. Bb2 {[%clk 0:02:57.1]}
5... O-O {[%clk 0:02:59.5]} 6. Bg2 {[%clk 0:02:57.7]} 6... Nc6 {[%clk 0:03:00]}
7. O-O {[%clk 0:02:41]} 7... a6 {[%clk 0:02:59.6]} 8. d4 {[%clk 0:02:35.3]} 8...
cxd4 {[%clk 0:02:58.9]} 9. Nxd4 {[%clk 0:02:35.5]} 9... Nxd4 {[%clk 0:02:59.2]}
10. Qxd4 {[%clk 0:02:35.3]} 10... d6 {[%clk 0:03:00.1]} 11. Nc3 {[%clk
0:02:34.6]} 11... Rb8 {[%clk 0:02:59.5]} 12. Rfd1 {[%clk 0:02:31.3]} 12... Be6
{[%clk 0:02:56.9]} 13. Rac1 {[%clk 0:02:30]} 13... Nd5 {[%clk 0:02:46.1]} 14.
Qd2 {[%clk 0:02:26.8]} 14... Nxc3 {[%clk 0:02:46.1]} 15. Bxc3 {[%clk 0:02:26.9]}
15... Bxc3 {[%clk 0:02:46.5]} 16. Qxc3 {[%clk 0:02:24.8]} 16... Qc7 {[%clk
0:02:43.4]} 17. h4 {[%clk 0:02:12.2]} 17... h5 {[%clk 0:02:40.8]} 18. Qe3 {[%clk
0:02:04.3]} 18... Rfc8 {[%clk 0:02:34.4]} 19. Be4 {[%clk 0:02:02]} 19... Kg7
{[%clk 0:02:28]} 20. Qd4+ {[%clk 0:01:59]} 20... f6 {[%clk 0:02:22.2]} 21. Kg2
{[%clk 0:01:55.1]} 21... Qc5 {[%clk 0:02:14.6]} 22. Qd3 {[%clk 0:01:55.1]} 22...
Bf7 {[%clk 0:02:06.3]} 23. Bf3 {[%clk 0:01:54]} 23... Qa5 {[%clk 0:01:57.4]} 24.
Rc2 {[%clk 0:01:43.2]} 24... b5 {[%clk 0:01:55.1]} 25. cxb5 {[%clk 0:01:43.1]}
25... axb5 {[%clk 0:01:53.3]} 26. Rdc1 {[%clk 0:01:38.7]} 26... Rxc2 {[%clk
0:01:51]} 27. Rxc2 {[%clk 0:01:39.6]} 27... b4 {[%clk 0:01:48.6]} 28. Qe3 {[%clk
0:01:38.8]} 28... Qe5 {[%clk 0:01:40]} 29. Qxe5 {[%clk 0:01:30.6]} 29... fxe5
{[%clk 0:01:38.2]} 30. e4 {[%clk 0:01:23.8]} 30... Rb5 {[%clk 0:01:30.4]} 31.
Rc7 {[%clk 0:00:58.7]} 31... Kf6 {[%clk 0:01:29.9]} 32. Ra7 {[%clk 0:00:59]}
32... Rc5 {[%clk 0:01:17.1]} 33. Ra4 {[%clk 0:00:52.4]} 33... Rc2 {[%clk
0:01:16.4]} 34. Rxb4 {[%clk 0:00:51.7]} 34... Rxa2 {[%clk 0:01:16]} 35. Rb8
{[%clk 0:00:51.6]} 35... Rb2 {[%clk 0:01:13.6]} 36. b4 {[%clk 0:00:49]} 36...
Bc4 {[%clk 0:01:10.6]} 37. g4 {[%clk 0:00:44]} 37... hxg4 {[%clk 0:00:59.1]} 38.
Bxg4 {[%clk 0:00:44.9]} 38... e6 {[%clk 0:00:59.4]} 39. Rb6 {[%clk 0:00:40.4]}
39... Ke7 {[%clk 0:00:55.2]} 40. Kg3 {[%clk 0:00:38.3]} 40... Rb3+ {[%clk
0:00:50.1]} 41. f3 {[%clk 0:00:38.2]} 41... Rb2 {[%clk 0:00:50.3]} 42. Bh3
{[%clk 0:00:38.5]} 42... Be2 {[%clk 0:00:41.6]} 43. Rb8 {[%clk 0:00:32.7]} 43...
Rb3 {[%clk 0:00:35.2]} 44. Bg4 {[%clk 0:00:32]} 44... d5 {[%clk 0:00:30.3]} 45.
Rb6 {[%clk 0:00:30.6]} 45... Bxf3 {[%clk 0:00:17.2]} 46. Rxe6+ {[%clk
0:00:24.6]} 46... Kf7 {[%clk 0:00:17]} 47. Rxe5 {[%clk 0:00:20.2]} 47... Bxe4+
{[%clk 0:00:13.5]} 48. Kf4 {[%clk 0:00:20.6]} 48... Rxb4 {[%clk 0:00:13.6]} 49.
Kg5 {[%clk 0:00:21]} 49... Rb6 {[%clk 0:00:12.4]} 50. h5 {[%clk 0:00:17.5]}
50... gxh5 {[%clk 0:00:11.5]} 51. Bxh5+ {[%clk 0:00:18.4]} 51... Kf8 {[%clk
0:00:10.9]} 52. Re8+ {[%clk 0:00:18.5]} 52... Kg7 {[%clk 0:00:11.3]} 53. Re7+
{[%clk 0:00:18.6]} 53... Kf8 {[%clk 0:00:11.6]} 54. Re8+ {[%clk 0:00:18.9]}
54... Kg7 {[%clk 0:00:11.9]} 55. Rd8 {[%clk 0:00:18.3]} 55... Re6 {[%clk
0:00:09.5]} 56. Rd7+ {[%clk 0:00:17.2]} 56... Kf8 {[%clk 0:00:09.8]} 57. Rf7+
{[%clk 0:00:16]} 57... Kg8 {[%clk 0:00:09.3]} 58. Rd7 {[%clk 0:00:16]} 58... Kf8
{[%clk 0:00:09.1]} 59. Bg4 {[%clk 0:00:15.4]} 59... Rb6 {[%clk 0:00:07.7]} 60.
Kf4 {[%clk 0:00:13.7]} 60... Ke8 {[%clk 0:00:07.2]} 61. Rg7 {[%clk 0:00:13.5]}
61... Kf8 {[%clk 0:00:07.4]} 62. Rc7 {[%clk 0:00:12.9]} 62... Ke8 {[%clk
0:00:07.6]} 63. Ke5 {[%clk 0:00:13.3]} 63... Kd8 {[%clk 0:00:07.9]} 64. Rd7+
{[%clk 0:00:13.5]} 64... Ke8 {[%clk 0:00:08.1]} 65. Ra7 {[%clk 0:00:13.3]} 65...
Kd8 {[%clk 0:00:07.9]} 66. Be6 {[%clk 0:00:13.8]} 66... Ke8 {[%clk 0:00:06.6]}
67. Rd7 {[%clk 0:00:14.4]} 67... Rxe6+ {[%clk 0:00:05.5]} 68. Kxe6 {[%clk
0:00:14.1]} 68... Bf5+ {[%clk 0:00:05.8]} 69. Kxd5 {[%clk 0:00:14.7]} 69... Kxd7
{[%clk 0:00:05.7]} 1/2-1/2

[Event "Late-Titled-Tuesday-Blitz-March-19-2024"]
[Site "Chess.com"]
[Date "2024.03.19"]
[Round "1"]
[White "Bugcrusher"]
[Black "TanitoluwaAps116"]
[Result "0-1"]
[WhiteElo "2482"]
[BlackElo "2811"]
[TimeControl "180+1"]
[EndTime "14:08:47 PDT"]
[Termination "TanitoluwaAps116 won on time"]

1. e4 {[%clk 0:03:00.9]} 1... c5 {[%clk 0:02:59.6]} 2. Nc3 {[%clk 0:02:59.7]}
2... e6 {[%clk 0:02:57.5]} 3. f4 {[%clk 0:02:57.4]} 3... d5 {[%clk 0:02:57.3]}
4. Bb5+ {[%clk 0:02:56.2]} 4... Bd7 {[%clk 0:02:54.8]} 5. Bxd7+ {[%clk
0:02:54.9]} 5... Qxd7 {[%clk 0:02:55.3]} 6. d3 {[%clk 0:02:54.7]} 6... Nc6
{[%clk 0:02:52.6]} 7. Nf3 {[%clk 0:02:54.5]} 7... Nf6 {[%clk 0:02:47.4]} 8. O-O
{[%clk 0:02:52.6]} 8... O-O-O {[%clk 0:02:45.7]} 9. e5 {[%clk 0:02:48.9]} 9...
Ne8 {[%clk 0:02:43.3]} 10. Bd2 {[%clk 0:02:45.5]} 10... g6 {[%clk 0:02:35.2]}
11. Rb1 {[%clk 0:02:42.8]} 11... f6 {[%clk 0:02:30.4]} 12. exf6 {[%clk
0:02:39.4]} 12... Nxf6 {[%clk 0:02:31.3]} 13. a3 {[%clk 0:02:34.7]} 13... Bg7
{[%clk 0:02:26.5]} 14. b4 {[%clk 0:02:31.9]} 14... cxb4 {[%clk 0:02:20.5]} 15.
axb4 {[%clk 0:02:31]} 15... d4 {[%clk 0:02:19.5]} 16. Ne4 {[%clk 0:02:04.7]}
16... Nxe4 {[%clk 0:02:16.5]} 17. dxe4 {[%clk 0:02:04.7]} 17... d3 {[%clk
0:02:15.7]} 18. b5 {[%clk 0:01:43.6]} 18... Nd4 {[%clk 0:01:32.4]} 19. cxd3
{[%clk 0:01:22.5]} 19... Nxb5 {[%clk 0:01:31.1]} 20. Qb3 {[%clk 0:01:15.4]}
20... a6 {[%clk 0:01:24.2]} 21. Rfc1+ {[%clk 0:01:04.1]} 21... Kb8 {[%clk
0:01:22.9]} 22. Ba5 {[%clk 0:01:04.7]} 22... Rc8 {[%clk 0:01:18.7]} 23. h3
{[%clk 0:00:47.1]} 23... h6 {[%clk 0:01:08.8]} 24. e5 {[%clk 0:00:46.9]} 24...
Rhf8 {[%clk 0:00:53.6]} 25. Rc4 {[%clk 0:00:43.9]} 25... Rf5 {[%clk 0:00:27.6]}
26. Rbc1 {[%clk 0:00:40.9]} 26... Rxc4 {[%clk 0:00:25.4]} 27. Qxc4 {[%clk
0:00:40.8]} 27... g5 {[%clk 0:00:22.5]} 28. g3 {[%clk 0:00:39.4]} 28... gxf4
{[%clk 0:00:22.2]} 29. gxf4 {[%clk 0:00:40.3]} 29... Rf8 {[%clk 0:00:20.9]} 30.
Bb6 {[%clk 0:00:39.4]} 30... h5 {[%clk 0:00:18.6]} 31. Nd4 {[%clk 0:00:32]}
31... Nxd4 {[%clk 0:00:08.5]} 32. Bxd4 {[%clk 0:00:28.3]} 32... Bh6 {[%clk
0:00:08.9]} 33. Qc5 {[%clk 0:00:27.7]} 33... Rg8+ {[%clk 0:00:08.3]} 34. Kf1
{[%clk 0:00:23.1]} 34... b5 {[%clk 0:00:07]} 35. Qb6+ {[%clk 0:00:20.3]} 35...
Qb7 {[%clk 0:00:06.9]} 36. Qxb7+ {[%clk 0:00:12.4]} 36... Kxb7 {[%clk
0:00:07.5]} 37. Be3 {[%clk 0:00:12.7]} 37... Rc8 {[%clk 0:00:07.4]} 38. Rxc8
{[%clk 0:00:10.6]} 38... Kxc8 {[%clk 0:00:08.3]} 39. Ke2 {[%clk 0:00:10]} 39...
Bg7 {[%clk 0:00:06.6]} 40. d4 {[%clk 0:00:10.4]} 40... Kd7 {[%clk 0:00:07.2]}
41. Kd3 {[%clk 0:00:09.9]} 41... Kc6 {[%clk 0:00:07.6]} 42. Ke4 {[%clk
0:00:09.8]} 42... b4 {[%clk 0:00:07.5]} 43. Bd2 {[%clk 0:00:09.2]} 43... a5
{[%clk 0:00:07.1]} 44. f5 {[%clk 0:00:08.5]} 44... exf5+ {[%clk 0:00:07.3]} 45.
Kxf5 {[%clk 0:00:09.2]} 45... Kd5 {[%clk 0:00:08.1]} 46. e6 {[%clk 0:00:09.8]}
46... Bf8 {[%clk 0:00:07.6]} 47. Kf6 {[%clk 0:00:08.1]} 47... Kxd4 {[%clk
0:00:07.8]} 48. Kf7 {[%clk 0:00:08.7]} 48... Bd6 {[%clk 0:00:07.4]} 49. Bf4
{[%clk 0:00:09]} 49... Bc5 {[%clk 0:00:06.8]} 50. Bg3 {[%clk 0:00:09.1]} 50...
Kd5 {[%clk 0:00:06.8]} 51. Bf2 {[%clk 0:00:09.2]} 51... Bd6 {[%clk 0:00:07.2]}
52. Bg3 {[%clk 0:00:09.5]} 52... Bc5 {[%clk 0:00:04.7]} 53. Bf2 {[%clk
0:00:09.8]} 53... b3 {[%clk 0:00:05]} 54. Bxc5 {[%clk 0:00:09.7]} 54... b2
{[%clk 0:00:05.9]} 55. e7 {[%clk 0:00:10.3]} 55... b1=Q {[%clk 0:00:06.8]} 56.
e8=Q {[%clk 0:00:10.3]} 56... Qf5+ {[%clk 0:00:06.9]} 57. Kg7 {[%clk 0:00:10]}
57... Kxc5 {[%clk 0:00:06]} 58. Qe3+ {[%clk 0:00:08]} 58... Kc6 {[%clk
0:00:05.9]} 59. Qc3+ {[%clk 0:00:07.9]} 59... Qc5 {[%clk 0:00:05.7]} 60. Qf3+
{[%clk 0:00:08.1]} 60... Qd5 {[%clk 0:00:05.5]} 61. Qc3+ {[%clk 0:00:08.2]}
61... Kb6 {[%clk 0:00:05.6]} 62. Qb2+ {[%clk 0:00:07.9]} 62... Ka6 {[%clk
0:00:06.2]} 63. Qe2+ {[%clk 0:00:07]} 63... Kb7 {[%clk 0:00:06.6]} 64. Qb2+
{[%clk 0:00:06.9]} 64... Kc7 {[%clk 0:00:06.7]} 65. Qc2+ {[%clk 0:00:07]} 65...
Qc6 {[%clk 0:00:06.3]} 66. Qh2+ {[%clk 0:00:04.8]} 66... Qd6 {[%clk 0:00:06.4]}
67. Qc2+ {[%clk 0:00:05.2]} 67... Kd8 {[%clk 0:00:06.5]} 68. Qc4 {[%clk
0:00:04.2]} 68... h4 {[%clk 0:00:05.5]} 69. Kh8 {[%clk 0:00:03.6]} 69... Qf6+
{[%clk 0:00:04.1]} 70. Kg8 {[%clk 0:00:03.1]} 70... Qe7 {[%clk 0:00:03.5]} 71.
Qd5+ {[%clk 0:00:02.1]} 71... Kc7 {[%clk 0:00:04.2]} 72. Qc4+ {[%clk 0:00:01.7]}
72... Kd6 {[%clk 0:00:04.7]} 0-1

[Event "Late-Titled-Tuesday-Blitz-March-19-2024"]
[Site "Chess.com"]
[Date "2024.03.19"]
[Round "1"]
[White "tomobeast"]
[Black "RantomOpening"]
[Result "1-0"]
[WhiteElo "2213"]
[BlackElo "2586"]
[TimeControl "180+1"]
[EndTime "14:08:50 PDT"]
[Termination "tomobeast won by checkmate"]

1. e4 {[%clk 0:03:00.9]} 1... c5 {[%clk 0:02:59.2]} 2. Nf3 {[%clk 0:03:00.9]}
2... e6 {[%clk 0:02:59.8]} 3. c4 {[%clk 0:02:58.6]} 3... Nf6 {[%clk 0:03:00.1]}
4. Nc3 {[%clk 0:02:58.3]} 4... Nc6 {[%clk 0:03:00]} 5. Be2 {[%clk 0:02:56.8]}
5... d5 {[%clk 0:03:00.2]} 6. exd5 {[%clk 0:02:56.2]} 6... exd5 {[%clk
0:03:01.1]} 7. d4 {[%clk 0:02:56.4]} 7... cxd4 {[%clk 0:03:01]} 8. Nxd4 {[%clk
0:02:53.4]} 8... Bb4 {[%clk 0:03:01.5]} 9. O-O {[%clk 0:02:31]} 9... O-O {[%clk
0:02:57.3]} 10. Bg5 {[%clk 0:02:20.8]} 10... Bxc3 {[%clk 0:02:01.3]} 11. bxc3
{[%clk 0:02:13.9]} 11... Be6 {[%clk 0:02:00.5]} 12. Nxc6 {[%clk 0:01:59]} 12...
bxc6 {[%clk 0:02:00.6]} 13. cxd5 {[%clk 0:01:59.6]} 13... cxd5 {[%clk
0:01:58.3]} 14. Qd4 {[%clk 0:01:56.4]} 14... h6 {[%clk 0:01:55.9]} 15. Bxf6
{[%clk 0:01:50.7]} 15... Qxf6 {[%clk 0:01:56.8]} 16. Qxf6 {[%clk 0:01:50.9]}
16... gxf6 {[%clk 0:01:57.7]} 17. Rfd1 {[%clk 0:01:49.7]} 17... Rfc8 {[%clk
0:01:57.5]} 18. Bf3 {[%clk 0:01:47.6]} 18... Rxc3 {[%clk 0:01:55.9]} 19. Bxd5
{[%clk 0:01:47.6]} 19... Bxd5 {[%clk 0:01:56.7]} 20. Rxd5 {[%clk 0:01:48.2]}
20... Rac8 {[%clk 0:01:57.6]} 21. g3 {[%clk 0:01:44.6]} 21... Ra3 {[%clk
0:01:55.6]} 22. Rd2 {[%clk 0:01:41]} 22... Kg7 {[%clk 0:01:54.9]} 23. Rb1 {[%clk
0:01:37.5]} 23... Rc6 {[%clk 0:01:54.5]} 24. Rb7 {[%clk 0:01:36.9]} 24... Rca6
{[%clk 0:01:51.2]} 25. Rdd7 {[%clk 0:01:35.2]} 25... Rxa2 {[%clk 0:01:51.3]} 26.
Rxf7+ {[%clk 0:01:35.4]} 26... Kg6 {[%clk 0:01:51.5]} 27. Kg2 {[%clk 0:01:29.4]}
27... Kf5 {[%clk 0:01:38.2]} 28. Rh7 {[%clk 0:01:25.4]} 28... Rc2 {[%clk
0:01:31]} 29. Rxa7 {[%clk 0:01:09.8]} 29... Rxa7 {[%clk 0:01:25.5]} 30. Rxa7
{[%clk 0:01:10.7]} 30... Kg6 {[%clk 0:01:26.3]} 31. Kf3 {[%clk 0:01:07.3]} 31...
h5 {[%clk 0:01:25.1]} 32. Ra3 {[%clk 0:01:05.7]} 32... Rc4 {[%clk 0:01:24.7]}
33. Kg2 {[%clk 0:01:04]} 33... Rb4 {[%clk 0:01:24.2]} 34. Kh3 {[%clk 0:01:04]}
34... Rc4 {[%clk 0:01:24.4]} 35. Ra5 {[%clk 0:01:02.6]} 35... Rb4 {[%clk
0:01:24.4]} 36. Rc5 {[%clk 0:01:01.7]} 36... Rd4 {[%clk 0:01:23]} 37. Rc2 {[%clk
0:01:01.7]} 37... Kg5 {[%clk 0:01:21]} 38. f4+ {[%clk 0:01:00.1]} 38... Kg6
{[%clk 0:01:21]} 39. Kh4 {[%clk 0:00:59.2]} 39... Ra4 {[%clk 0:01:15.1]} 40. Rc5
{[%clk 0:00:57.5]} 40... Ra2 {[%clk 0:01:13.6]} 41. h3 {[%clk 0:00:57.7]} 41...
Ra3 {[%clk 0:01:05.7]} 42. Rxh5 {[%clk 0:00:49.2]} 42... f5 {[%clk 0:00:58.2]}
43. Rg5+ {[%clk 0:00:48.6]} 43... Kf6 {[%clk 0:00:58.6]} 44. Kh5 {[%clk
0:00:46.8]} 44... Ra8 {[%clk 0:00:57.8]} 45. Rg6+ {[%clk 0:00:47]} 45... Kf7
{[%clk 0:00:57.1]} 46. g4 {[%clk 0:00:42.8]} 46... Ra3 {[%clk 0:00:58]} 47. Kg5
{[%clk 0:00:40.3]} 47... Rxh3 {[%clk 0:00:50.6]} 48. Kxf5 {[%clk 0:00:40]} 48...
Ra3 {[%clk 0:00:51.1]} 49. Rf6+ {[%clk 0:00:39.5]} 49... Kg7 {[%clk 0:00:51.1]}
50. Re6 {[%clk 0:00:38.9]} 50... Kf7 {[%clk 0:00:50.4]} 51. Re5 {[%clk
0:00:36.9]} 51... Ra6 {[%clk 0:00:50.1]} 52. Rb5 {[%clk 0:00:36.8]} 52... Rf6+
{[%clk 0:00:49.9]} 53. Ke4 {[%clk 0:00:34.3]} 53... Re6+ {[%clk 0:00:50]} 54.
Kf3 {[%clk 0:00:34.3]} 54... Ra6 {[%clk 0:00:50.5]} 55. g5 {[%clk 0:00:31.8]}
55... Ke7 {[%clk 0:00:50.4]} 56. Kg4 {[%clk 0:00:31.8]} 56... Ra1 {[%clk
0:00:50.3]} 57. Rb7+ {[%clk 0:00:29.7]} 57... Ke6 {[%clk 0:00:50.4]} 58. f5+
{[%clk 0:00:29.8]} 58... Ke5 {[%clk 0:00:50.5]} 59. Re7+ {[%clk 0:00:29.6]}
59... Kd6 {[%clk 0:00:50.5]} 60. Re6+ {[%clk 0:00:29.9]} 60... Kd7 {[%clk
0:00:50.6]} 61. g6 {[%clk 0:00:29.5]} 61... Rg1+ {[%clk 0:00:50.8]} 62. Kh5
{[%clk 0:00:29.6]} 62... Rh1+ {[%clk 0:00:49]} 63. Kg5 {[%clk 0:00:29.1]} 63...
Rg1+ {[%clk 0:00:48.2]} 64. Kf6 {[%clk 0:00:28.8]} 64... Kd8 {[%clk 0:00:39.9]}
65. g7 {[%clk 0:00:28.8]} 65... Kd7 {[%clk 0:00:39.5]} 66. Kf7 {[%clk
0:00:27.9]} 66... Rf1 {[%clk 0:00:38.2]} 67. Rf6 {[%clk 0:00:25.8]} 67... Rg1
{[%clk 0:00:36.2]} 68. g8=Q {[%clk 0:00:25.3]} 68... Re1 {[%clk 0:00:36.3]} 69.
Qg3 {[%clk 0:00:22.2]} 69... Re7+ {[%clk 0:00:34.3]} 70. Kg6 {[%clk 0:00:22.3]}
70... Ke8 {[%clk 0:00:15.9]} 71. Re6 {[%clk 0:00:22.3]} 71... Kf8 {[%clk
0:00:13.2]} 72. Rxe7 {[%clk 0:00:21]} 72... Kxe7 {[%clk 0:00:14.1]} 73. Qe5+
{[%clk 0:00:20.7]} 73... Kf8 {[%clk 0:00:14]} 74. Qg7+ {[%clk 0:00:19.4]} 74...
Ke8 {[%clk 0:00:14.2]} 75. Kf6 {[%clk 0:00:19.6]} 75... Kd8 {[%clk 0:00:15.1]}
76. Ke6 {[%clk 0:00:19.8]} 76... Kc8 {[%clk 0:00:16]} 77. Kd6 {[%clk 0:00:19.9]}
77... Kd8 {[%clk 0:00:16.6]} 78. Qd7# {[%clk 0:00:17.6]} 1-0

[Event "Late-Titled-Tuesday-Blitz-March-19-2024"]
[Site "Chess.com"]
[Date "2024.03.19"]
[Round "1"]
[White "Real_taiatai"]
[Black "Yaacovn"]
[Result "0-1"]
[WhiteElo "2518"]
[BlackElo "2895"]
[TimeControl "180+1"]
[EndTime "14:08:52 PDT"]
[Termination "Yaacovn won by checkmate"]

1. d4 {[%clk 0:03:00.9]} 1... Nf6 {[%clk 0:02:55.2]} 2. c4 {[%clk 0:02:59.1]}
2... e5 {[%clk 0:02:53.7]} 3. dxe5 {[%clk 0:02:58.6]} 3... Ne4 {[%clk
0:02:51.7]} 4. Nd2 {[%clk 0:02:57.2]} 4... Bb4 {[%clk 0:02:51.3]} 5. a3 {[%clk
0:02:56.7]} 5... Nxd2 {[%clk 0:02:49.6]} 6. Bxd2 {[%clk 0:02:57.6]} 6... Bxd2+
{[%clk 0:02:48.5]} 7. Qxd2 {[%clk 0:02:58.5]} 7... O-O {[%clk 0:02:48.5]} 8. Nf3
{[%clk 0:02:57.7]} 8... Nc6 {[%clk 0:02:47.6]} 9. e3 {[%clk 0:02:55.1]} 9... Qe7
{[%clk 0:02:28.3]} 10. Qc3 {[%clk 0:02:50.9]} 10... Re8 {[%clk 0:02:28]} 11. Be2
{[%clk 0:02:37.7]} 11... Nxe5 {[%clk 0:02:27.8]} 12. Nxe5 {[%clk 0:02:36.1]}
12... Qxe5 {[%clk 0:02:28.7]} 13. Qxe5 {[%clk 0:02:35.7]} 13... Rxe5 {[%clk
0:02:28.1]} 14. O-O-O {[%clk 0:02:36.4]} 14... d6 {[%clk 0:02:25.1]} 15. Bf3
{[%clk 0:02:31.4]} 15... Rb8 {[%clk 0:02:22.6]} 16. Kc2 {[%clk 0:02:25.8]} 16...
Be6 {[%clk 0:02:22.3]} 17. Kc3 {[%clk 0:02:25.9]} 17... b5 {[%clk 0:02:18.3]}
18. cxb5 {[%clk 0:02:21.7]} 18... Rc5+ {[%clk 0:02:15]} 19. Kd2 {[%clk
0:02:17.9]} 19... Rcxb5 {[%clk 0:02:15.1]} 20. b4 {[%clk 0:02:18.1]} 20... a5
{[%clk 0:02:15]} 21. Rc1 {[%clk 0:02:15.7]} 21... axb4 {[%clk 0:02:11.9]} 22.
axb4 {[%clk 0:02:14.3]} 22... c5 {[%clk 0:01:54.5]} 23. bxc5 {[%clk 0:02:12.1]}
23... dxc5 {[%clk 0:01:55.4]} 24. Rc2 {[%clk 0:02:09.7]} 24... Rd8+ {[%clk
0:01:51]} 25. Ke2 {[%clk 0:02:03.7]} 25... Bb3 {[%clk 0:01:48.9]} 26. Rc3 {[%clk
0:01:55]} 26... Bc4+ {[%clk 0:01:42.4]} 27. Rxc4 {[%clk 0:01:45.2]} 27... Rb2+
{[%clk 0:01:42.4]} 28. Ke1 {[%clk 0:01:45.9]} 28... Rb1+ {[%clk 0:01:42.8]} 29.
Ke2 {[%clk 0:01:43.1]} 29... Rxh1 {[%clk 0:01:40.9]} 30. Rxc5 {[%clk 0:01:30]}
30... Rxh2 {[%clk 0:01:39.5]} 31. Rc7 {[%clk 0:01:27.6]} 31... Rh6 {[%clk
0:01:38]} 32. Bd5 {[%clk 0:01:24.1]} 32... Rf6 {[%clk 0:01:36.3]} 33. e4 {[%clk
0:01:21.5]} 33... g6 {[%clk 0:01:30.8]} 34. Ke3 {[%clk 0:01:20.8]} 34... Rf8
{[%clk 0:01:28.4]} 35. f4 {[%clk 0:01:20.3]} 35... Ra6 {[%clk 0:01:26.7]} 36. g4
{[%clk 0:01:17]} 36... h6 {[%clk 0:01:25.9]} 37. f5 {[%clk 0:01:16.3]} 37...
gxf5 {[%clk 0:01:22.6]} 38. gxf5 {[%clk 0:01:14.7]} 38... Kg7 {[%clk 0:01:21.8]}
39. Kf4 {[%clk 0:01:14.1]} 39... Ra1 {[%clk 0:01:17.9]} 40. e5 {[%clk
0:01:02.2]} 40... Ra4+ {[%clk 0:01:15.3]} 41. Be4 {[%clk 0:00:57.2]} 41... Rb8
{[%clk 0:01:10.3]} 42. f6+ {[%clk 0:00:17.1]} 42... Kf8 {[%clk 0:01:01.3]} 43.
Kf5 {[%clk 0:00:18]} 43... Ra5 {[%clk 0:00:57.2]} 44. Bd3 {[%clk 0:00:17.9]}
44... Re8 {[%clk 0:00:54.3]} 45. Bc4 {[%clk 0:00:17.8]} 45... Raxe5+ {[%clk
0:00:48.6]} 46. Kg4 {[%clk 0:00:17.7]} 46... Re4+ {[%clk 0:00:47.6]} 47. Kf3
{[%clk 0:00:16.4]} 47... Rxc4 {[%clk 0:00:31.8]} 48. Rxc4 {[%clk 0:00:16]} 48...
Kg8 {[%clk 0:00:25.5]} 49. Kg4 {[%clk 0:00:15.6]} 49... Kh7 {[%clk 0:00:21.2]}
50. Kf5 {[%clk 0:00:16]} 50... Ra8 {[%clk 0:00:21.2]} 51. Rc5 {[%clk 0:00:15.8]}
51... Ra1 {[%clk 0:00:21.1]} 52. Rc7 {[%clk 0:00:16]} 52... Ra5+ {[%clk
0:00:21]} 53. Kf4 {[%clk 0:00:16.2]} 53... Kg6 {[%clk 0:00:21.4]} 54. Rc6 {[%clk
0:00:16.6]} 54... Rf5+ {[%clk 0:00:21.5]} 55. Kg4 {[%clk 0:00:17.2]} 55... Rxf6
{[%clk 0:00:21.3]} 56. Rc8 {[%clk 0:00:17.8]} 56... Kg7 {[%clk 0:00:21.2]} 57.
Rc7 {[%clk 0:00:17.6]} 57... Rg6+ {[%clk 0:00:21.5]} 58. Kh4 {[%clk 0:00:17.5]}
58... Rg5 {[%clk 0:00:21.8]} 59. Rc6 {[%clk 0:00:17]} 59... f6 {[%clk
0:00:21.5]} 60. Ra6 {[%clk 0:00:17]} 60... Kg6 {[%clk 0:00:21.8]} 61. Ra8 {[%clk
0:00:17]} 61... h5 {[%clk 0:00:21.2]} 62. Rg8+ {[%clk 0:00:16.7]} 62... Kf5
{[%clk 0:00:21.5]} 63. Rh8 {[%clk 0:00:16.6]} 63... Rg4+ {[%clk 0:00:21.2]} 64.
Kh3 {[%clk 0:00:16.2]} 64... Kg5 {[%clk 0:00:21]} 65. Rg8+ {[%clk 0:00:16.7]}
65... Kf4 {[%clk 0:00:21]} 66. Ra8 {[%clk 0:00:17.4]} 66... f5 {[%clk
0:00:20.8]} 67. Ra4+ {[%clk 0:00:18]} 67... Kg5 {[%clk 0:00:21.2]} 68. Ra8
{[%clk 0:00:17.1]} 68... h4 {[%clk 0:00:21.6]} 69. Ra7 {[%clk 0:00:16.7]} 69...
Rg3+ {[%clk 0:00:21.5]} 70. Kh2 {[%clk 0:00:16]} 70... Kg4 {[%clk 0:00:22]} 71.
Ra6 {[%clk 0:00:15.5]} 71... Rh3+ {[%clk 0:00:21.5]} 72. Kg2 {[%clk 0:00:15.4]}
72... Rg3+ {[%clk 0:00:22]} 73. Kf2 {[%clk 0:00:15.5]} 73... Rb3 {[%clk
0:00:22.9]} 74. Ra4+ {[%clk 0:00:15.2]} 74... f4 {[%clk 0:00:22.9]} 75. Ra8
{[%clk 0:00:15.2]} 75... Rb2+ {[%clk 0:00:23.2]} 76. Kg1 {[%clk 0:00:15.7]}
76... Kg3 {[%clk 0:00:22.9]} 77. Rg8+ {[%clk 0:00:15.8]} 77... Kf3 {[%clk
0:00:23.2]} 78. Rh8 {[%clk 0:00:15.6]} 78... Rg2+ {[%clk 0:00:21.9]} 79. Kh1
{[%clk 0:00:15.8]} 79... Rg4 {[%clk 0:00:22.1]} 80. Ra8 {[%clk 0:00:15.2]} 80...
Kg3 {[%clk 0:00:21.6]} 81. Ra3+ {[%clk 0:00:14.6]} 81... f3 {[%clk 0:00:21.9]}
82. Ra1 {[%clk 0:00:15.1]} 82... Re4 {[%clk 0:00:19.2]} 83. Rg1+ {[%clk
0:00:13.9]} 83... Kf4 {[%clk 0:00:19.2]} 84. Kh2 {[%clk 0:00:14.2]} 84... f2
{[%clk 0:00:18.5]} 85. Rf1 {[%clk 0:00:14.3]} 85... Kf3 {[%clk 0:00:18.9]} 86.
Kh3 {[%clk 0:00:14.5]} 86... Ke2 {[%clk 0:00:17.3]} 87. Rh1 {[%clk 0:00:10]}
87... f1=Q+ {[%clk 0:00:16.7]} 88. Rxf1 {[%clk 0:00:10.2]} 88... Kxf1 {[%clk
0:00:16.9]} 89. Kh2 {[%clk 0:00:11]} 89... Re3 {[%clk 0:00:17.1]} 90. Kh1 {[%clk
0:00:10.4]} 90... Rh3# {[%clk 0:00:17.4]} 0-1